bitfinex/quotes_SOLUSD_20251218
["timestamp","ask_amount","ask_price","bid_price","bid_amount"]
[1766091901599,39.33263833,118.25,118.18,9.28]
[1766091901600,11.10826504,118.2,118.18,9.28]
[1766091901800,0.69,118.18,118.14,9.28]
[1766091902025,11.10826504,118.19,118.15,0.7]
[1766091902232,0.69,118.2,118.15,0.7]
[1766091902233,11.79826504,118.2,118.15,11.80826504]
[1766091902431,11.80826504,118.2,118.15,11.80826504]
[1766091903318,31.525938,118.22,118.17,11.75826504]
[1766091903699,0.7,118.21,118.17,0.65]
[1766091903906,0.7,118.21,118.17,11.75826504]
[1766091904132,5.1424756,118.2,118.17,11.75826504]
[1766091904303,0.7,118.21,118.17,11.75826504]
[1766091904615,5.13993578,118.2,118.17,11.75826504]
[1766091904801,16.94906236,118.19,118.15,0.65]
[1766091905019,0.7,118.19,118.15,11.75826504]
[1766091905223,11.80826504,118.19,118.15,0.65]
[1766091905936,0.7,118.19,118.15,0.65]
[1766091906140,11.10826504,118.21,118.17,0.65]
[1766091906321,5.14557711,118.2,118.17,0.65]
[1766091906521,31.525938,118.22,118.17,0.65]
[1766091906742,5.14448794,118.21,118.17,61.75]
[1766091906929,5.14448794,118.2,118.17,72.85826504]
[1766091907124,31.525938,118.22,118.17,72.85826504]
[1766091907338,5.1439437,118.21,118.17,72.85826504]
[1766091907547,31.525938,118.22,118.17,72.85826504]
[1766091907731,5.13986253,118.21,118.17,72.85826504]
[1766091908048,31.525938,118.22,118.17,72.85826504]
[1766091908250,0.7,118.2,118.17,61.1]
[1766091909233,0.7,118.2,118.16,72.85826504]
[1766091912234,11.10826504,118.21,118.16,72.85826504]
[1766091912551,0.7,118.2,118.16,61.75]
[1766091912743,11.80826504,118.2,118.16,61.75]
[1766091912948,17.73914301,118.22,118.16,72.85826504]
[1766091913149,16.94037387,118.21,118.16,72.85826504]
[1766091913350,16.24037387,118.2,118.16,61.75]
[1766091913655,11.80826504,118.19,118.15,10.43767296]
[1766091916965,11.80826504,118.19,118.14,21.04826504]
[1766091917259,11.80826504,118.18,118.14,9.94]
[1766091917634,0.7,118.18,118.14,9.94]
[1766091917852,0.7,118.18,118.14,0.66]
[1766091918360,20.38826504,118.19,118.15,0.66]
[1766091918561,9.28,118.21,118.17,0.66]
[1766091918730,11.10826504,118.22,118.18,0.66]
[1766091918931,5.12639657,118.21,118.18,61.76]
[1766091919157,5.12639657,118.21,118.18,61.1]
[1766091919158,11.80826504,118.21,118.18,61.1]
[1766091919357,11.80826504,118.23,118.18,72.86826504]
[1766091919562,5.82735665,118.22,118.18,61.76]
[1766091919740,5.12735665,118.21,118.18,61.76]
[1766091919944,11.80826504,118.2,118.18,61.1]
[1766091920149,11.80826504,118.2,118.16,0.66]
[1766091920350,11.10826504,118.21,118.17,0.66]
[1766091920553,5.12888553,118.2,118.17,0.66]
[1766091920765,11.10826504,118.21,118.17,0.66]
[1766091921077,5.12891182,118.2,118.17,0.66]
[1766091921274,11.80826504,118.22,118.17,11.76826504]
[1766091921446,5.13280703,118.21,118.18,11.10826504]
[1766091921645,11.80826504,118.23,118.19,0.66]
[1766091921845,5.12200752,118.22,118.19,0.66]
[1766091922040,5.12200752,118.21,118.19,0.66]
[1766091922362,11.80826504,118.22,118.17,0.66]
[1766091922563,5.12156428,118.21,118.18,0.66]
[1766091922746,11.80826504,118.22,118.18,0.66]
[1766091922946,5.12012439,118.21,118.18,0.66]
[1766091923167,0.7,118.22,118.18,11.76826504]
[1766091923358,5.12017837,118.21,118.18,11.76826504]
[1766091923695,11.80826504,118.23,118.19,0.66]
[1766091923885,5.12301672,118.22,118.19,0.66]
[1766091924073,0.7,118.23,118.19,0.66]
[1766091924254,5.12292781,118.22,118.19,0.66]
[1766091924453,0.7,118.23,118.19,0.66]
[1766091924775,5.12548943,118.22,118.19,0.66]
[1766091924973,11.10826504,118.23,118.19,0.66]
[1766091925173,5.12540111,118.22,118.19,0.66]
[1766091925378,11.10826504,118.23,118.19,0.66]
[1766091925682,5.12816171,118.22,118.19,0.66]
[1766091925970,11.80826504,118.23,118.19,0.66]
[1766091926174,5.12818037,118.22,118.19,0.66]
[1766091926380,11.80826504,118.23,118.19,0.66]
[1766091926547,5.1316484,118.22,118.19,0.66]
[1766091926749,5.1316484,118.21,118.19,61.76]
[1766091926945,11.80826504,118.23,118.19,61.76]
[1766091927169,5.13375072,118.22,118.19,61.76]
[1766091927473,5.13375072,118.21,118.19,61.76]
[1766091927678,5.13825233,118.2,118.18,9.94]
[1766091927846,11.10826504,118.22,118.18,9.28]
[1766091928047,16.24615454,118.21,118.16,11.10826504]
[1766091928356,5.1378895,118.2,118.17,0.66]
[1766091928666,5.1378895,118.19,118.17,0.66]
[1766091928974,3.6978895,118.18,118.16,11.10826504]
[1766091929183,11.80826504,118.21,118.16,11.10826504]
[1766091929873,11.10826504,118.22,118.17,11.10826504]
[1766091930062,0.7,118.2,118.16,11.10826504]
[1766091931951,11.10826504,118.22,118.16,11.10826504]
[1766091932153,0.7,118.2,118.15,70.38]
[1766091932356,0.7,118.2,118.16,11.10826504]
[1766091932969,0.7,118.2,118.16,72.20826504]
[1766091933974,0.7,118.2,118.16,61.1]
[1766091934180,11.10826504,118.21,118.17,11.10826504]
[1766091934181,10.43767296,118.21,118.17,11.10826504]
[1766091934361,0.7,118.22,118.19,11.10826504]
[1766091934676,0.1,118.25,118.21,11.10826504]
[1766091934856,0.1,118.25,118.23,11.10826504]
[1766091935056,11.90826504,118.25,118.21,61.1]
[1766091935376,11.80826504,118.24,118.21,70.38]
[1766091935564,0.7,118.24,118.21,70.38]
[1766091935769,0.7,118.23,118.21,70.38]
[1766091937083,0.1,118.25,118.22,11.10826504]
[1766091937265,0.1,118.25,118.23,20.38826504]
[1766091937763,0.1,118.25,118.23,9.28]
[1766091937962,0.1,118.25,118.23,20.38826504]
[1766091938166,0.1,118.25,118.23,9.28]
[1766091938565,0.7,118.24,118.2,20.38826504]
[1766091938772,0.7,118.24,118.2,9.28]
[1766091938773,0.7,118.23,118.2,9.28]
[1766091939375,11.13767296,118.22,118.18,16.10111178]
[1766091939575,17.95878474,118.22,118.18,9.28]
[1766091939774,11.13767296,118.22,118.18,16.10111178]
[1766091941795,0.7,118.22,118.18,16.10111178]
[1766091942808,7.48111178,118.21,118.18,9.28]
[1766091943099,0.66,118.21,118.18,16.10111178]
[1766091943386,0.66,118.21,118.18,9.28]
[1766091943880,0.66,118.22,118.18,16.10111178]
[1766091944286,11.09767296,118.23,118.19,6.82111178]
[1766091944480,11.09767296,118.23,118.2,6.82111178]
[1766091944689,10.43767296,118.23,118.2,6.82111178]
[1766091944880,0.76,118.25,118.21,6.82111178]
[1766091945187,0.76,118.25,118.22,6.82111178]
[1766091945488,0.76,118.25,118.21,77.20111178]
[1766091946384,7.48111178,118.24,118.19,67.92111178]
[1766091946582,6.82111178,118.23,118.19,70.38]
[1766091946784,0.66,118.21,118.19,70.38]
[1766091946989,0.66,118.21,118.19,9.28]
[1766091947168,0.66,118.21,118.17,16.10111178]
[1766091947362,0.66,118.21,118.17,9.28]
[1766091947562,0.66,118.2,118.17,9.28]
[1766091948699,7.48111178,118.2,118.17,9.28]
[1766091948876,7.48111178,118.2,118.15,6.82111178]
[1766091949185,6.82111178,118.2,118.15,6.82111178]
[1766091949392,0.66,118.19,118.14,16.10111178]
[1766091949596,0.66,118.18,118.14,16.10111178]
[1766091949765,0.66,118.17,118.14,9.28]
[1766091950703,6.82111178,118.15,118.08,8.46844334]
[1766091950877,0.66,118.14,118.1,6.82111178]
[1766091951373,0.66,118.14,118.09,9.28]
[1766091951609,5.15701523,118.13,118.1,6.82111178]
[1766091951884,5.15701523,118.12,118.1,6.82111178]
[1766091952178,0.66,118.14,118.1,6.82111178]
[1766091952396,5.157869,118.13,118.09,9.28]
[1766091952584,5.15478102,118.12,118.09,16.10111178]
[1766091952785,0.66,118.16,118.11,6.82111178]
[1766091953005,0.66,118.14,118.09,9.28]
[1766091953199,5.81487432,118.13,118.09,9.28]
[1766091953404,0.66,118.11,118.06,0.2]
[1766091953678,17.91878474,118.07,118.06,0.2]
[1766091953902,23.07022135,118.07,118.06,0.2]
[1766091954221,23.07022135,118.07,118.02,16.10111178]
[1766091954502,17.91878474,118.07,118.02,16.10111178]
[1766091955803,0.66,118.07,118.04,6.82111178]
[1766091956103,7.48111178,118.07,118.02,16.30111178]
[1766091956876,0.66,118.06,118.02,16.10111178]
[1766091957306,7.48111178,118.06,118.02,9.28]
[1766091957506,7.48111178,118.04,118.01,0.2]
[1766091957889,10.43767296,118.06,118.01,0.2]
[1766091957890,17.91878474,118.03,118.01,0.2]
[1766091958200,0.66,118.02,118.01,0.2]
[1766091958395,10.43767296,118.03,117.99,9.28]
[1766091958704,11.09767296,118.03,117.99,9.28]
[1766091959492,17.91878474,118.03,117.99,9.28]
[1766091960194,7.48111178,118.02,117.99,9.28]
[1766091960416,7.48111178,118.02,117.97,7.42111178]
[1766091960708,0.66,118.04,118.0,6.82111178]
[1766091961081,0.66,118.04,117.98,0.6]
[1766091961406,0.71,118.01,117.96,9.28]
[1766091961591,0.71,118.01,117.97,6.82111178]
[1766091962184,0.71,118.01,117.96,9.88]
[1766091962387,11.14767296,117.99,117.94,0.8]
[1766091962594,17.25878474,117.99,117.94,0.8]
[1766091962811,17.25878474,117.99,117.89,20.34]
[1766091962812,0.71,117.92,117.89,10.43767296]
[1766091963112,6.82111178,117.9,117.85,0.2]
[1766091963288,6.82111178,117.87,117.85,0.2]
[1766091963601,6.82111178,117.87,117.81,0.69]
[1766091963602,6.82111178,117.86,117.81,0.69]
[1766091963825,6.82111178,117.9,117.84,6.82111178]
[1766091964111,72.04019088,117.99,117.88,6.82111178]
[1766091964315,5.08601414,117.98,117.92,6.82111178]
[1766091964483,8.80994492,117.99,117.93,6.82111178]
[1766091964810,8.80994492,117.99,117.92,0.69]
[1766091964811,6.82111178,117.98,117.92,0.69]
[1766091965018,10.43767296,117.97,117.92,7.51111178]
[1766091965223,10.43767296,117.97,117.9,0.69]
[1766091965224,0.71,117.96,117.9,0.69]
[1766091965390,0.71,117.96,117.91,6.82111178]
[1766091965591,0.71,117.95,117.9,7.51111178]
[1766091965802,0.71,117.95,117.91,6.82111178]
[1766091965999,16.81111178,117.99,117.93,7.51111178]
[1766091966316,0.71,117.98,117.93,7.51111178]
[1766091966618,0.71,117.98,117.94,6.82111178]
[1766091966797,0.71,118.0,117.96,6.82111178]
[1766091967002,0.71,117.99,117.95,6.82111178]
[1766091967206,11.14767296,117.99,117.95,6.82111178]
[1766091967520,9.93767296,117.98,117.92,9.28]
[1766091967817,0.71,117.97,117.92,16.10111178]
[1766091968119,0.71,117.97,117.91,11.12767296]
[1766091968120,0.71,117.96,117.91,0.69]
[1766091968319,0.71,117.96,117.91,6.82111178]
[1766091968520,0.71,117.96,117.92,6.82111178]
[1766091969514,0.71,117.96,117.93,6.82111178]
[1766091969823,10.43767296,117.97,117.95,6.82111178]
[1766091970207,11.14767296,117.97,117.91,17.29041278]
[1766091970396,17.96878474,117.97,117.92,6.82111178]
[1766091970813,11.14767296,117.97,117.93,6.82111178]
[1766091971095,0.71,117.96,117.92,6.82111178]
[1766091971322,7.53111178,117.96,117.91,7.51111178]
[1766091971509,0.71,117.95,117.91,6.82111178]
[1766091973411,17.96878474,117.95,117.9,7.51111178]
[1766091974427,11.14767296,117.95,117.9,7.51111178]
[1766091974840,11.14767296,117.95,117.91,6.82111178]
[1766091975014,11.14767296,117.95,117.9,0.69]
[1766091975327,11.14767296,117.95,117.91,6.82111178]
[1766091975699,11.14767296,117.95,117.9,0.69]
[1766091975902,11.14767296,117.95,117.91,6.82111178]
[1766091976426,17.94878474,117.93,117.88,0.72]
[1766091976636,17.25878474,117.93,117.89,0.72]
[1766091976839,6.82111178,117.96,117.91,6.82111178]
[1766091977004,10.43767296,117.95,117.91,6.82111178]
[1766091977629,7.51111178,117.96,117.91,6.82111178]
[1766091977837,0.69,117.96,117.92,6.82111178]
[1766091978039,0.69,117.96,117.89,18.91986248]
[1766091978040,10.43767296,117.95,117.89,18.91986248]
[1766091978329,10.43767296,117.95,117.91,6.82111178]
[1766091978522,10.43767296,117.95,117.92,6.82111178]
[1766091978699,6.82111178,118.0,117.94,7.54111178]
[1766091978905,0.69,117.98,117.94,7.54111178]
[1766091979218,7.51111178,117.98,117.93,6.82111178]
[1766091979531,7.51111178,117.97,117.92,0.72]
[1766091979739,7.51111178,117.97,117.92,7.54111178]
[1766091980207,0.69,117.97,117.92,7.54111178]
[1766091980412,7.51111178,117.97,117.92,7.54111178]
[1766091981515,0.69,117.97,117.93,6.82111178]
[1766091981828,8.47512754,118.0,117.93,6.82111178]
[1766091981829,17.94878474,117.98,117.93,7.54111178]
[1766091982136,16.61592515,117.97,117.93,7.54111178]
[1766091982307,5.49177975,117.96,117.93,7.54111178]
[1766091982502,11.12767296,117.97,117.93,7.54111178]
[1766091982726,5.49197291,117.96,117.94,6.82111178]
[1766091982912,0.69,117.97,117.93,0.72]
[1766091983231,5.49211393,117.96,117.94,6.82111178]
[1766091983448,0.69,117.97,117.94,6.82111178]
[1766091983618,5.49606747,117.96,117.94,6.82111178]
[1766091983803,0.69,117.97,117.94,6.82111178]
[1766091984005,5.49605905,117.96,117.93,7.54111178]
[1766091984333,0.69,117.97,117.94,6.82111178]
[1766091984524,5.49648879,117.96,117.93,7.54111178]
[1766091984830,0.69,117.97,117.93,7.54111178]
[1766091985035,0.69,117.93,117.88,7.54111178]
[1766091985212,0.69,117.93,117.89,7.54111178]
[1766091985408,0.69,117.93,117.89,0.72]
[1766091985409,7.51111178,117.93,117.89,0.72]
[1766091985646,5.49843716,117.92,117.89,7.54111178]
[1766091985934,7.51111178,117.93,117.89,7.54111178]
[1766091986248,5.49930971,117.92,117.89,7.54111178]
[1766091986441,0.69,117.93,117.89,7.54111178]
[1766091986607,5.50152126,117.92,117.89,7.54111178]
[1766091986807,0.69,117.96,117.91,6.82111178]
[1766091987008,23.44983186,117.95,117.9,7.54111178]
[1766091987233,6.82111178,117.92,117.86,9.20394522]
[1766091987410,5.50524783,117.91,117.87,6.82111178]
[1766091987620,7.51111178,117.92,117.87,7.54111178]
[1766091987923,5.50329871,117.91,117.87,7.54111178]
[1766091988128,7.51111178,117.92,117.87,7.54111178]
[1766091988329,5.50036012,117.91,117.87,6.82111178]
[1766091988527,13.0114719,117.9,117.85,16.84111178]
[1766091988721,5.50036012,117.89,117.86,0.72]
[1766091989638,5.32036013,117.88,117.86,0.72]
[1766091989834,0.69,117.9,117.86,7.54111178]
[1766091990017,0.69,117.91,117.86,7.54111178]
[1766091990413,7.51111178,117.89,117.85,9.3]
[1766091990611,8.48107487,117.91,117.84,0.92]
[1766091990612,17.94878474,117.88,117.84,0.92]
[1766091990823,10.43767296,117.88,117.84,7.74111178]
[1766091991033,17.94878474,117.88,117.84,0.92]
[1766091993347,11.12767296,117.88,117.84,0.92]
[1766091993844,17.94878474,117.88,117.84,0.92]
[1766091994337,11.12767296,117.88,117.84,0.11018281]
[1766091994538,17.94878474,117.88,117.84,0.11018281]
[1766091995042,11.12767296,117.88,117.84,0.11018281]
[1766091995249,11.12767296,117.88,117.83,6.82111178]
[1766091995250,17.94878474,117.88,117.83,6.82111178]
[1766091995824,0.69,117.86,117.81,19.24761788]
[1766091996044,17.29069099,117.92,117.84,6.82111178]
[1766091996347,10.43767296,117.89,117.85,7.54111178]
[1766091996522,0.69,117.93,117.88,7.54111178]
[1766091996719,7.51111178,117.96,117.91,6.82111178]
[1766091997122,10.43767296,117.95,117.9,0.72]
[1766091997452,10.43767296,117.95,117.92,6.82111178]
[1766091997619,0.69,117.96,117.92,6.82111178]
[1766091998434,0.69,117.96,117.91,7.54111178]
[1766091999029,7.51111178,117.95,117.9,7.54111178]
[1766091999431,15.6310567,118.0,117.93,7.54111178]
[1766091999432,8.47535179,117.99,117.93,7.54111178]
[1766091999646,17.94878474,117.98,117.93,7.54111178]
[1766091999842,7.51111178,117.95,117.9,17.25878474]
[1766092000029,0.69,117.95,117.9,17.25878474]
[1766092000225,7.51111178,117.94,117.89,16.84111178]
[1766092000525,6.82111178,117.9,117.83,26.59659395]
[1766092000724,7.51111178,117.89,117.84,6.82111178]
[1766092000931,0.69,117.89,117.84,7.54111178]
[1766092001131,7.51111178,117.89,117.84,7.54111178]
[1766092001524,0.69,117.89,117.84,11.86680469]
[1766092001851,5.19682882,117.88,117.84,11.86680469]
[1766092002052,5.19682882,117.87,117.84,11.86680469]
[1766092002243,5.01682882,117.86,117.84,11.86680469]
[1766092002548,0.69,117.89,117.84,11.86680469]
[1766092002750,0.69,117.89,117.85,11.14680469]
[1766092003853,0.69,117.89,117.86,11.14680469]
[1766092004154,0.67,117.9,117.86,11.14680469]
[1766092005032,11.81680469,117.9,117.85,11.84680469]
[1766092006554,11.81680469,117.87,117.82,11.14680469]
[1766092006726,0.67,117.85,117.81,9.3]
[1766092006931,11.81680469,117.85,117.81,9.3]
[1766092007129,0.67,117.84,117.81,9.3]
[1766092007840,0.67,117.9,117.83,11.14680469]
[1766092008044,0.67,117.9,117.87,11.14680469]
[1766092008259,0.67,117.9,117.86,11.14680469]
[1766092008841,0.67,117.9,117.87,11.14680469]
[1766092009044,0.67,117.92,117.88,11.14680469]
[1766092009258,0.67,117.92,117.87,11.14680469]
[1766092009466,0.67,117.91,117.86,11.14680469]
[1766092009650,0.67,117.9,117.86,11.14680469]
[1766092010639,0.67,117.9,117.85,30.88447765]
[1766092010961,11.14680469,117.9,117.85,9.3]
[1766092011162,11.14680469,117.9,117.83,30.88447765]
[1766092011163,0.67,117.87,117.83,30.88447765]
[1766092011466,0.67,117.87,117.84,11.14680469]
[1766092011841,0.67,117.87,117.83,30.88447765]
[1766092012042,0.67,117.87,117.83,91.98447765]
[1766092012762,0.67,117.87,117.84,11.14680469]
[1766092012962,0.67,117.87,117.83,100.47112315]
[1766092013643,0.67,117.87,117.84,11.14680469]
[1766092013848,11.14680469,117.91,117.86,11.14680469]
[1766092014053,0.67,117.9,117.86,11.14680469]
[1766092014657,30.88447765,117.93,117.87,11.14680469]
[1766092014956,0.67,117.92,117.86,9.3]
[1766092015156,0.67,117.91,117.86,20.44680469]
[1766092016567,0.67,117.9,117.86,9.3]
[1766092016871,0.67,117.88,117.86,9.3]
[1766092017047,0.67,117.88,117.84,20.44680469]
[1766092020667,0.67,117.88,117.84,9.3]
[1766092020876,0.67,117.88,117.84,20.44680469]
[1766092021080,0.67,117.88,117.84,9.3]
[1766092021586,11.14680469,117.86,117.76,0.2]
[1766092021755,0.71,117.83,117.78,28.93675711]
[1766092021955,0.71,117.83,117.79,21.58447765]
[1766092022183,0.71,117.83,117.79,10.43767296]
[1766092022487,11.85680469,117.83,117.79,10.43767296]
[1766092022653,0.71,117.82,117.79,10.43767296]
[1766092023659,0.71,117.84,117.79,30.07410299]
[1766092024183,0.71,117.84,117.81,11.14680469]
[1766092024362,0.71,117.84,117.81,20.44680469]
[1766092024555,0.71,117.84,117.81,9.3]
[1766092025094,11.85680469,117.84,117.81,9.3]
[1766092025301,0.71,117.87,117.83,11.14680469]
[1766092025462,0.71,117.87,117.82,11.14680469]
[1766092025667,0.71,117.83,117.78,30.88447765]
[1766092026079,0.71,117.83,117.78,19.73767296]
[1766092026282,11.14680469,117.83,117.78,30.88447765]
[1766092026476,0.71,117.82,117.78,19.73767296]
[1766092027069,0.71,117.82,117.78,30.88447765]
[1766092027681,0.71,117.82,117.78,19.73767296]
[1766092027883,0.71,117.86,117.79,11.14680469]
[1766092028088,0.71,117.84,117.79,72.24680469]
[1766092028469,0.71,117.84,117.8,11.14680469]
[1766092029273,0.71,117.8,117.77,0.2]
[1766092029709,11.85680469,117.81,117.77,0.2]
[1766092029910,10.43767296,117.84,117.77,19.83790336]
[1766092030080,0.71,117.82,117.77,11.34680469]
[1766092030278,11.85680469,117.82,117.77,19.83778836]
[1766092030506,11.85680469,117.82,117.77,11.34680469]
[1766092031008,0.71,117.82,117.77,11.34680469]
[1766092031198,11.85680469,117.82,117.77,0.2]
[1766092031580,0.71,117.82,117.77,19.83780422]
[1766092032501,11.14680469,117.84,117.78,11.14680469]
[1766092032671,0.69,117.84,117.8,11.14680469]
[1766092033382,0.69,117.86,117.81,11.14680469]
[1766092033706,0.69,117.87,117.82,19.63425953]
[1766092033914,0.69,117.87,117.83,11.14680469]
[1766092034076,0.69,117.87,117.82,30.07193249]
[1766092034275,0.69,117.87,117.82,80.0251278]
[1766092034580,9.3,117.89,117.83,11.14680469]
[1766092034900,0.69,117.88,117.84,20.44680469]
[1766092035282,11.14680469,117.91,117.85,11.14680469]
[1766092035609,11.83680469,117.89,117.84,20.44680469]
[1766092035803,0.69,117.89,117.84,20.44680469]
[1766092036349,0.69,117.92,117.87,11.14680469]
[1766092036513,0.69,117.92,117.87,20.44680469]
[1766092036691,0.69,117.95,117.91,11.14680469]
[1766092036895,0.69,117.95,117.92,11.14680469]
[1766092037193,0.69,117.95,117.91,9.3]
[1766092037411,0.69,117.97,117.91,20.44680469]
[1766092037584,11.83680469,117.97,117.92,11.14680469]
[1766092038011,11.83680469,117.96,117.91,30.88447765]
[1766092038184,0.69,117.96,117.91,30.88447765]
[1766092038505,0.69,117.95,117.91,10.43767296]
[1766092038685,0.69,117.95,117.91,19.73767296]
[1766092039003,0.69,117.95,117.91,30.88447765]
[1766092040535,0.69,117.97,117.92,11.14680469]
[1766092040826,0.2,117.98,117.94,21.58447765]
[1766092041002,0.2,117.98,117.95,20.44680469]
[1766092042220,0.2,117.98,117.96,11.14680469]
[1766092042394,0.2,117.98,117.97,11.14680469]
[1766092042593,0.69,118.01,117.97,11.14680469]
[1766092042791,0.1,118.02,117.98,20.44680469]
[1766092043096,0.1,118.02,117.95,29.67338357]
[1766092043097,0.69,118.0,117.96,9.3]
[1766092043924,11.14680469,117.99,117.96,9.3]
[1766092044122,11.14680469,117.97,117.91,11.14680469]
[1766092044329,0.69,117.96,117.92,9.3]
[1766092044501,0.69,117.96,117.92,19.73767296]
[1766092045007,0.69,117.96,117.92,30.88447765]
[1766092045317,11.14680469,117.98,117.92,30.88447765]
[1766092045523,0.69,117.98,117.93,11.14680469]
[1766092045694,0.69,117.98,117.93,19.62620346]
[1766092046098,0.69,117.96,117.92,30.88447765]
[1766092047811,11.14680469,117.98,117.92,30.88447765]
[1766092048033,0.69,117.97,117.92,30.88447765]
[1766092048725,18.91206019,118.01,117.94,11.14680469]
[1766092048927,11.83680469,117.99,117.94,61.1]
[1766092049127,0.69,117.98,117.94,61.1]
[1766092049302,0.69,117.97,117.94,61.1]
[1766092051410,0.69,118.0,117.96,11.14680469]
[1766092051617,0.79,118.02,117.97,11.14680469]
[1766092051817,5.0822052,118.01,117.97,11.14680469]
[1766092052016,0.79,118.02,117.98,11.14680469]
[1766092052222,0.1,118.02,117.99,11.14680469]
[1766092053526,0.79,118.02,117.98,20.44680469]
[1766092054324,0.79,118.02,117.99,11.14680469]
[1766092054519,0.79,118.02,117.98,20.44680469]
[1766092056529,0.79,118.02,117.98,9.3]
[1766092056853,0.69,118.0,117.95,82.68447765]
[1766092057038,0.69,118.0,117.96,20.44680469]
[1766092058051,0.69,118.0,117.96,81.54680469]
[1766092061359,0.69,118.0,117.97,6.84479331]
[1766092062131,0.1,118.02,117.99,6.84479331]
[1766092062624,0.1,118.02,117.99,16.14479331]
[1766092063459,0.1,118.02,117.99,9.3]
[1766092063628,0.79,118.02,117.99,9.3]
[1766092063830,0.79,118.02,117.99,16.14479331]
[1766092064759,0.79,118.02,118.0,6.84479331]
[1766092064760,0.1,118.02,118.0,6.84479331]
[1766092064936,0.1,118.02,118.01,9.3]
[1766092069557,0.69,118.05,118.01,16.14479331]
[1766092069756,0.69,118.05,118.02,6.84479331]
[1766092069964,0.69,118.05,118.01,70.4]
[1766092070128,0.69,118.05,118.01,77.24479331]
[1766092070332,0.69,118.04,118.01,70.4]
[1766092071366,0.69,118.04,118.01,77.24479331]
[1766092071663,0.69,118.04,118.01,70.4]
[1766092071865,0.69,118.08,118.03,6.84479331]
[1766092072162,8.56854744,118.09,118.03,6.84479331]
[1766092072163,0.1,118.09,118.06,6.84479331]
[1766092072460,0.1,118.09,118.08,6.84479331]
[1766092072759,0.1,118.09,118.08,9.3]
[1766092073642,0.69,118.08,117.99,0.72]
[1766092073841,0.69,118.07,118.03,6.84479331]
[1766092074053,0.69,118.07,118.03,16.12479331]
[1766092074465,0.79,118.09,118.04,7.56479331]
[1766092074665,0.79,118.09,118.05,6.84479331]
[1766092074854,0.79,118.09,118.05,7.56479331]
[1766092075256,0.1,118.09,118.06,6.84479331]
[1766092075454,6.94479331,118.12,118.08,6.84479331]
[1766092075455,0.1,118.12,118.08,6.84479331]
[1766092075841,0.79,118.12,118.08,6.84479331]
[1766092076461,0.79,118.12,118.07,7.47479331]
[1766092076775,5.80011113,118.11,118.07,6.84479331]
[1766092077063,0.1,118.12,118.09,6.84479331]
[1766092077268,0.1,118.12,118.09,9.28]
[1766092077440,0.1,118.12,118.09,16.12479331]
[1766092078058,0.35559637,118.13,118.09,16.12479331]
[1766092078866,0.35559637,118.13,118.09,9.28]
[1766092079239,5.11489247,118.12,118.09,9.28]
[1766092079470,6.84479331,118.12,118.07,6.84479331]
[1766092079655,6.84479331,118.12,118.08,9.28]
[1766092079969,5.11819545,118.11,118.08,9.28]
[1766092080188,7.53479331,118.12,118.08,9.28]
[1766092080387,5.12161633,118.11,118.08,16.12479331]
[1766092080570,7.53479331,118.14,118.08,25.3136083]
[1766092080762,5.12007385,118.13,118.1,7.56479331]
[1766092080982,7.53479331,118.17,118.11,16.84479331]
[1766092081292,5.81020145,118.16,118.11,16.84479331]
[1766092081582,0.72,118.18,118.12,10.43767296]
[1766092081797,0.72,118.16,118.12,10.43767296]
[1766092082683,0.82,118.19,118.15,6.84479331]
[1766092082991,0.82,118.19,118.15,17.28246627]
[1766092083281,0.82,118.19,118.14,9.28]
[1766092083282,0.72,118.17,118.14,9.28]
[1766092083667,7.56479331,118.17,118.14,9.28]
[1766092084570,0.72,118.17,118.14,9.28]
[1766092084957,6.94479331,118.19,118.14,9.28]